fUSD/lending_fUSD_20250513
["ID","MTS","AMOUNT","RATE_DAILY","PERIOD"]
[360906179,1747134644426,-572.45,0.00012273,2]
[360906180,1747134644436,-400.0,0.00012273,2]
[360906181,1747134644446,-538.14,0.00012273,2]
[360906182,1747134644456,-647.0,0.00012273,2]
[360906183,1747134644466,-424.65,0.00012273,2]
[360906184,1747134644476,-900.88555337,0.00012276,2]
[360906185,1747134644486,-1132.36635356,0.00012276,2]
[360906186,1747134644496,-7091.9897238,0.00012426,2]
[360906187,1747134644506,-348.17630247,0.00012427,2]
[360906188,1747134644515,-400.0,0.00012458,2]
[360906189,1747134644527,-677.18,0.00012458,2]
[360906190,1747134644536,-575.48,0.00012458,2]
[360906191,1747134644546,-824.6,0.00012458,2]
[360906192,1747134644556,-428.68,0.00012458,2]
[360906193,1747134644566,-400.0,0.00012458,2]
[360906194,1747134644576,-2838.08,0.00012458,2]
[360906195,1747134644586,-400.0,0.00012458,2]
[360906196,1747134644595,-840.84,0.00012458,2]
[360906197,1747134644605,-400.0,0.00012458,2]
[360906198,1747134644615,-768.63,0.00012458,2]
[360906199,1747134644625,-454.28,0.00012458,2]
[360906200,1747134644635,-400.0,0.00012458,2]
[360906201,1747134644645,-400.0,0.00012458,2]
[360906202,1747134644654,-400.0,0.00012458,2]
[360906203,1747134644664,-400.0,0.00012458,2]
[360906204,1747134644673,-11343.74714384,0.00012458,2]
[360906205,1747134644683,-157.1793793,0.00012464,2]
[360906206,1747134644693,-21738.1277761,0.00012522,2]
[360906207,1747134644703,-722.71,0.00012525,2]
[360906208,1747134644714,-400.0,0.00012525,2]
[360906209,1747134644723,-463.58,0.00012525,2]
[360906210,1747134644732,-598.93,0.00012525,2]
[360906211,1747134644742,-2160.98,0.00012525,2]
[360906212,1747134644752,-400.0,0.00012525,2]
[360906213,1747134644761,-400.0,0.00012525,2]
[360906214,1747134644770,-400.0,0.00012525,2]
[360906215,1747134644780,-427.48,0.00012525,2]
[360906216,1747134644789,-400.0,0.00012525,2]
[360906217,1747134644800,-2285.88,0.00012525,2]
[360906218,1747134644810,-400.87,0.00012525,2]
[360906219,1747134644819,-400.0,0.00012525,2]
[360906220,1747134644829,-400.0,0.00012525,2]
[360906221,1747134644838,-2176.23,0.00012525,2]
[360906222,1747134644848,-400.0,0.00012525,2]
[360906223,1747134644857,-400.0,0.00012525,2]
[360906224,1747134644866,-605.62,0.00012525,2]
[360906225,1747134644876,-400.0,0.00012525,2]
[360906226,1747134644886,-400.0,0.00012525,2]
[360906227,1747134644895,-400.0,0.00012525,2]
[360906228,1747134644905,-400.0,0.00012525,2]
[360906229,1747134644915,-1267.53,0.00012525,2]
[360906230,1747134644925,-400.0,0.00012525,2]
[360906231,1747134644935,-400.0,0.00012525,2]
[360906232,1747134644944,-661.4,0.00012525,2]
[360906233,1747134644953,-1435.76,0.00012525,2]
[360906234,1747134644963,-509.33,0.00012525,2]
[360906235,1747134644974,-400.0,0.00012525,2]
[360906236,1747134644985,-410.82,0.00012525,2]
[360906237,1747134644995,-400.0,0.00012525,2]
[360906238,1747134645004,-1197.31,0.00012525,2]
[360906239,1747134645014,-400.0,0.00012525,2]
[360906240,1747134645025,-400.0,0.00012525,2]
[360906241,1747134645035,-400.0,0.00012525,2]
[360906242,1747134645045,-400.0,0.00012525,2]
[360906243,1747134645054,-442.45,0.00012525,2]
[360906244,1747134645065,-400.0,0.00012525,2]
[360906245,1747134645079,-400.0,0.00012525,2]
[360906246,1747134645089,-816.98,0.00012525,2]
[360906247,1747134645098,-421.33185277,0.00012525,2]
[360906248,1747134645107,-400.0,0.00012525,2]
[360906249,1747134645118,-400.0,0.00012525,2]
[360906250,1747134645128,-457.06,0.00012525,2]
[360906251,1747134645138,-3468.6,0.00012525,2]
[360906252,1747134645147,-400.0,0.00012525,2]
[360906253,1747134645156,-549.99,0.00012525,2]
[360906254,1747134645166,-400.0,0.00012525,2]
[360906255,1747134645176,-1590.13,0.00012525,2]
[360906256,1747134645186,-829.01,0.00012525,2]
[360906257,1747134645195,-1980.2,0.00012525,2]
[360906258,1747134645205,-2415.18,0.00012525,2]
[360906259,1747134645215,-1236.05,0.00012525,2]
[360906260,1747134645224,-967.46,0.00012525,2]
[360906261,1747134645235,-632.91,0.00012525,2]
[360906262,1747134645244,-652.86,0.00012525,2]
[360906263,1747134645254,-400.0,0.00012525,2]
[360906264,1747134645263,-1040.05,0.00012525,2]
[360906265,1747134645273,-535.9,0.00012525,2]
[360906266,1747134645283,-400.0,0.00012525,2]
[360906267,1747134645293,-400.0,0.00012525,2]
[360906268,1747134645302,-400.0,0.00012525,2]
[360906269,1747134645312,-1854.66,0.00012525,2]
[360906270,1747134645322,-426.52,0.00012525,2]
[360906271,1747134645331,-400.0,0.00012525,2]
[360906272,1747134645341,-821.33,0.00012525,2]
[360906273,1747134645352,-400.0,0.00012525,2]
[360906274,1747134645361,-469.7,0.00012525,2]
[360906275,1747134645370,-328.26989138,0.00012525,2]
[360906276,1747134645380,-400.0,0.00012526,2]
[360906277,1747134645390,-400.0,0.00012526,2]
[360906278,1747134645399,-400.0,0.00012526,2]
[360906279,1747134645409,-400.0,0.00012526,2]
[360906280,1747134645418,-400.0,0.00012526,2]
[360906281,1747134645429,-400.0,0.00012526,2]
[360906282,1747134645439,-400.0,0.00012526,2]
[360906283,1747134645448,-702.2,0.00012526,2]
[360906284,1747134645458,-365.81172947,0.00012526,2]
[360906285,1747134645467,-400.0,0.00012526,2]
[360906286,1747134645477,-400.0,0.00012526,2]
[360906287,1747134645487,-254.8244213,0.00012526,2]
[360906291,1747134646325,-400.0,0.00012252,2]
[360906292,1747134646336,-1077.75497195,0.00012275,2]
[360906293,1747134646346,-145.1755787,0.00012526,2]
[360906294,1747134646356,-400.0,0.00012526,2]
[360906295,1747134646366,-400.0,0.00012526,2]
[360906296,1747134646376,-400.0,0.00012526,2]
[360906297,1747134646385,-400.0,0.00012526,2]
[360906298,1747134646395,-400.0,0.00012526,2]
[360906299,1747134646405,-400.0,0.00012526,2]
[360906300,1747134646414,-400.0,0.00012526,2]
[360906301,1747134646424,-400.0,0.00012526,2]
[360906302,1747134646435,-400.0,0.00012526,2]
[360906303,1747134646444,-1473.5,0.00012526,2]
[360906304,1747134646454,-400.72523075,0.00012526,2]
[360906305,1747134646463,-400.0,0.00012526,2]
[360906306,1747134646473,-575.97,0.00012526,2]
[360906307,1747134646482,-400.0,0.00012526,2]
[360906308,1747134646492,-1209.29,0.00012526,2]
[360906309,1747134646502,-1446.1,0.00012526,2]
[360906310,1747134646511,-400.0,0.00012526,2]
[360906311,1747134646521,-400.0,0.00012526,2]
[360906312,1747134646530,-648.58,0.00012526,2]
[360906313,1747134646540,-818.75,0.00012526,2]
[360906314,1747134646550,-400.0,0.00012526,2]
[360906315,1747134646561,-400.0,0.00012526,2]
[360906316,1747134646572,-2164.87,0.00012526,2]
[360906317,1747134646582,-6381.69,0.00012526,2]
[360906318,1747134646591,-453.05,0.00012526,2]
[360906319,1747134646601,-520.59,0.00012526,2]
[360906320,1747134646610,-1000.0,0.00012526,2]
[360906322,1747134646620,-428.51,0.00012526,2]
[360906324,1747134646629,-498.45,0.00012526,2]
[360906326,1747134646639,-400.0,0.00012526,2]
[360906328,1747134646648,-400.0,0.00012526,2]
[360906331,1747134646663,-1343.51,0.00012526,2]
[360906333,1747134646672,-1271.9,0.00012526,2]
[360906334,1747134646681,-400.0,0.00012526,2]
[360906335,1747134646691,-2073.72,0.00012526,2]
[360906336,1747134646700,-770.27,0.00012526,2]
[360906337,1747134646710,-1593.68,0.00012526,2]
[360906338,1747134646720,-654.46,0.00012526,2]
[360906339,1747134646730,-500.0,0.00012526,2]
[360906340,1747134646739,-1574.38,0.00012526,2]
[360906341,1747134646749,-2143.29,0.00012526,2]
[360906342,1747134646758,-1220.46,0.00012526,2]
[360906343,1747134646768,-24741.67,0.00012526,2]
[360906344,1747134646777,-6007.57085809,0.00012526,2]
[360906345,1747134664631,-0.00030894,0.00012526,2]
[360906346,1747134665087,-62052.93883297,0.00012526,2]
[360906347,1747134665096,-769.56,0.00012526,2]
[360906348,1747134665105,-400.0,0.00012526,2]
[360906349,1747134665115,-400.0,0.00012526,2]
[360906350,1747134665124,-400.0,0.00012526,2]
[360906351,1747134665134,-400.0,0.00012526,2]
[360906352,1747134665143,-400.0,0.00012526,2]
[360906353,1747134665155,-400.0,0.00012526,2]
[360906354,1747134665164,-1389.73,0.00012526,2]
[360906355,1747134665173,-400.0,0.00012526,2]
[360906356,1747134665183,-400.0,0.00012526,2]
[360906357,1747134665192,-1757.12,0.00012526,2]
[360906358,1747134665201,-400.0,0.00012526,2]
[360906359,1747134665210,-1252.11,0.00012526,2]
[360906360,1747134665220,-3137.29,0.00012526,2]
[360906361,1747134665229,-400.0,0.00012526,2]
[360906362,1747134665240,-1380.44,0.00012526,2]
[360906363,1747134665250,-400.0,0.00012526,2]
[360906364,1747134665259,-8841.06,0.00012526,2]
[360906365,1747134665268,-400.0,0.00012526,2]
[360906366,1747134665278,-400.0,0.00012526,2]
[360906367,1747134665288,-820.4,0.00012526,2]
[360906368,1747134665298,-550.56,0.00012526,2]
[360906369,1747134665307,-249.33747301,0.00012527,2]
[360906370,1747134665316,-400.0,0.00012527,2]
[360906371,1747134665326,-400.0,0.00012527,2]
[360906372,1747134665335,-400.0,0.00012527,2]
[360906373,1747134665345,-400.0,0.00012527,2]
[360906374,1747134665355,-400.0,0.00012527,2]
[360906375,1747134665364,-400.0,0.00012527,2]
[360906376,1747134665373,-400.0,0.00012527,2]
[360906377,1747134665383,-478.85,0.00012527,2]
[360906378,1747134665393,-400.0,0.00012527,2]
[360906379,1747134665402,-400.0,0.00012527,2]
[360906380,1747134665411,-411.83,0.00012527,2]
[360906381,1747134665420,-916.21,0.00012527,2]
[360906382,1747134665429,-400.0,0.00012527,2]
[360906383,1747134665438,-400.0,0.00012527,2]
[360906384,1747134665448,-400.0,0.00012527,2]
[360906385,1747134665457,-400.0,0.00012527,2]
[360906386,1747134665466,-537.06,0.00012527,2]
[360906387,1747134665476,-400.0,0.00012527,2]
[360906388,1747134665485,-400.0,0.00012527,2]
[360906389,1747134665494,-400.0,0.00012527,2]
[360906390,1747134665504,-547.38,0.00012527,2]
[360906391,1747134665513,-400.0,0.00012527,2]
[360906392,1747134665522,-400.0,0.00012527,2]
[360906393,1747134665691,-873.63,0.00012527,2]
[360906394,1747134665702,-400.0,0.00012527,2]
[360906395,1747134665712,-382.5345181,0.00012527,2]
[360906396,1747134665722,-400.0,0.00012527,2]
[360906397,1747134665731,-400.0,0.00012527,2]
[360906398,1747134665740,-400.0,0.00012527,2]
[360906399,1747134665750,-1180.74,0.00012527,2]
[360906400,1747134665759,-400.0,0.00012527,2]
[360906401,1747134665769,-400.0,0.00012527,2]
[360906402,1747134665778,-400.0,0.00012527,2]
[360906403,1747134665787,-400.0,0.00012527,2]
[360906404,1747134665798,-400.0,0.00012527,2]
[360906405,1747134665808,-949.72,0.00012527,2]
[360906406,1747134665818,-576.53,0.00012527,2]
[360906407,1747134665827,-751.59,0.00012527,2]
[360906408,1747134665838,-400.0,0.00012527,2]
[360906409,1747134665848,-400.0,0.00012527,2]
[360906410,1747134665858,-420.27,0.00012527,2]
[360906411,1747134665867,-2332.49,0.00012527,2]
[360906412,1747134665877,-400.0,0.00012527,2]
[360906413,1747134665886,-400.0,0.00012527,2]
[360906414,1747134665897,-528.8,0.00012527,2]
[360906415,1747134665906,-1058.37,0.00012527,2]
[360906416,1747134665916,-400.0,0.00012527,2]
[360906417,1747134665925,-400.0,0.00012527,2]
[360906418,1747134665934,-400.0,0.00012527,2]
[360906419,1747134665944,-4619.0,0.00012527,2]
[360906420,1747134665953,-1996.62,0.00012527,2]
[360906421,1747134665962,-400.0,0.00012527,2]
[360906422,1747134665973,-1731.73,0.00012527,2]
[360906423,1747134665982,-400.0,0.00012527,2]
[360906424,1747134665992,-400.0,0.00012527,2]
[360906425,1747134666001,-400.0,0.00012527,2]
[360906426,1747134666011,-586.51,0.00012527,2]
[360906427,1747134666021,-590.43,0.00012527,2]
[360906428,1747134666030,-400.0,0.00012527,2]
[360906429,1747134666039,-400.0,0.00012527,2]
[360906430,1747134666050,-400.0,0.00012527,2]
[360906431,1747134666059,-400.0,0.00012527,2]
[360906432,1747134666070,-1813.32,0.00012527,2]
[360906433,1747134666082,-1320.29,0.00012527,2]
[360906434,1747134666091,-2162.29,0.00012527,2]
[360906435,1747134666101,-400.0,0.00012527,2]
[360906436,1747134666111,-400.0,0.00012527,2]
[360906437,1747134666122,-853.27,0.00012527,2]
[360906438,1747134666131,-1475.64,0.00012527,2]
[360906439,1747134666140,-1442.27,0.00012527,2]
[360906440,1747134666150,-858.51,0.00012527,2]
[360906441,1747134666161,-400.0,0.00012527,2]
[360906442,1747134666171,-669.91,0.00012527,2]
[360906443,1747134666180,-400.0,0.00012527,2]
[360906444,1747134666190,-950.58,0.00012527,2]
[360906445,1747134666199,-400.0,0.00012527,2]
[360906446,1747134666208,-400.0,0.00012527,2]
[360906447,1747134666217,-400.0,0.00012527,2]
[360906448,1747134666227,-473.3,0.00012527,2]
[360906449,1747134666236,-171.987075,0.00012528,2]
[360906450,1747134666245,-171.987075,0.00012528,2]
[360906451,1747134666255,-171.987075,0.00012528,2]
[360906452,1747134666265,-171.987075,0.00012528,2]
[360906453,1747134666274,-400.0,0.00012528,2]
[360906454,1747134666283,-400.0,0.00012528,2]
[360906455,1747134666293,-400.0,0.00012528,2]
[360906456,1747134666303,-418.84,0.00012528,2]
[360906457,1747134666312,-400.0,0.00012528,2]
[360906458,1747134666321,-419.95,0.00012528,2]
[360906459,1747134666331,-838.95,0.00012528,2]
[360906460,1747134666340,-400.0,0.00012528,2]
[360906461,1747134666349,-827.54,0.00012528,2]
[360906462,1747134666359,-605.98,0.00012528,2]
[360906463,1747134666368,-400.0,0.00012528,2]
[360906464,1747134666378,-450.92407587,0.00012528,2]
[360906465,1747134666387,-400.0,0.00012528,2]
[360906466,1747134666397,-400.0,0.00012528,2]
[360906467,1747134666406,-400.0,0.00012528,2]
[360906468,1747134666415,-445.86798641,0.00012528,2]
[360906469,1747134666429,-359.98201359,0.00012528,2]
[360906470,1747134666438,-400.0,0.00012528,2]
[360906471,1747134666448,-312.3736384,0.00012528,2]
[360906472,1747134666460,-87.6263616,0.00012528,2]
[360906473,1747134666470,-1628.0135784,0.00012528,2]
[360906474,1747134666481,-1153.4264216,0.00012528,2]
[360906475,1747134666491,-400.0,0.00012528,2]
[360906476,1747134666500,-1604.80169762,0.0001253,2]
[360906477,1747134677943,200.0,0.00011833,2]
[360906478,1747134678463,150.0,0.00011833,2]
[360906479,1747134725712,200.0,0.00011727,2]
[360906480,1747134981546,1000.0,0.00011545,2]
[360906481,1747135009479,4280.93083785,0.00011512,2]
[360906482,1747135009500,1692.66916215,0.00011512,2]
[360906483,1747135051988,164.88,0.00011824,2]
[360906484,1747135095093,1000.0,0.00028,120]
[360906485,1747135184499,1037.2,0.00011455,2]
[360906486,1747135208007,7105.25083785,0.00011458,2]
[360906487,1747135208029,10000.0,0.00011458,2]
[360906488,1747135208051,6794.74916215,0.00011458,2]
[360906489,1747135265991,3205.25083785,0.00011434,2]
[360906490,1747135266013,421.05916215,0.00011434,2]
[360906491,1747135268151,383.306369,7.945e-05,2]
[360906492,1747135276250,1016.14,0.00011434,2]
[360906493,1747135279503,2153.99,0.00011434,2]
[360906494,1747135342684,2751.0,0.00011507,2]
[360906495,1747135438173,250.0,0.00011379,2]
[360906496,1747135466040,805.61,0.00011395,2]
[360906497,1747135473741,158.15,0.00011379,2]
[360906498,1747135487673,840.74,9.477e-05,2]
[360906499,1747135487999,840.74,0.00011741,2]
[360906500,1747135529187,379.26446885,0.00011,2]
[360906501,1747135529215,2150.6693157,0.00011,2]
[360906502,1747135537311,2446.38051852,9e-05,2]
[360906503,1747135555812,5402.95016578,6.94e-05,2]
[360906504,1747135555833,4829.50822024,6.94e-05,2]
[360906505,1747135563676,5170.49177976,8e-05,2]
[360906506,1747135563699,7185.62296872,8e-05,2]
[360906508,1747135591393,547.08,0.00011356,2]
[360906511,1747135623973,431.83161,0.00011819,2]
[360906515,1747135639213,205.0,9.8e-05,2]
[360906534,1747135656027,500.0,0.00011354,2]
[360906535,1747135679103,1130.46542128,0.0001,2]
[360906536,1747135679124,938.58913187,0.0001,2]
[360906540,1747135734511,200.0,0.00011336,2]
[360906541,1747135736630,6396.19,0.00011336,2]
[360906568,1747135832137,-156.67798247,0.00011879,2]
[360906569,1747135832147,-460.52414113,0.00011917,3]
[360906570,1747135832157,-135.4001107,0.00011973,2]
[360906571,1747135832244,-71.9998893,0.00011973,2]
[360906572,1747135832254,-1200.0,0.00011979,2]
[360906573,1747135832263,-41296.87785834,0.0001198,2]
[360906574,1747135832274,-1000.0,0.00011999,2]
[360906575,1747135832285,-1000.0,0.00012,2]
[360906576,1747135832296,-7214.3,0.00012055,2]
[360906577,1747135832306,-200.0,0.00012066,2]
[360906578,1747135832315,-553.0,0.0001208,2]
[360906579,1747135832325,-918.0,0.0001208,2]
[360906580,1747135832334,-1243.0,0.0001208,2]
[360906581,1747135832345,-1052.178,0.0001208,2]
[360906582,1747135832355,-574.84,0.0001208,2]
[360906583,1747135832364,-1030.497,0.0001208,2]
[360906584,1747135832374,-6813.0,0.0001208,2]
[360906585,1747135832383,-153.0,0.0001208,2]
[360906586,1747135832393,-4045.088,0.0001208,2]
[360906587,1747135832405,-1000.0,0.000121,2]
[360906589,1747135832414,-3741.4305,0.00012153,2]
[360906591,1747135832423,-1874.69,0.00012153,2]
[360906593,1747135832432,-200.0,0.00012182,2]
[360906595,1747135832442,-3427.08,0.00012182,2]
[360906597,1747135832451,-610.59,0.00012182,2]
[360906599,1747135832460,-999.99,0.00012182,2]
[360906601,1747135832469,-548.47975202,0.00012245,2]
[360906603,1747135832478,-400.0,0.00012252,2]
[360906605,1747135832487,-400.0,0.00012252,2]
[360906607,1747135832497,-400.0,0.00012252,2]
[360906609,1747135832506,-400.0,0.00012252,2]
[360906611,1747135832515,-400.0,0.00012252,2]
[360906614,1747135832527,-400.0,0.00012252,2]
[360906617,1747135832536,-400.0,0.00012252,2]
[360906620,1747135832545,-400.0,0.00012252,2]
[360906621,1747135832554,-424.95850265,0.00012252,2]
[360906623,1747135832563,-400.0,0.00012252,2]
[360906624,1747135832574,-460.7430536,0.00012252,2]
[360906625,1747135832583,-400.0,0.00012252,2]
[360906626,1747135832592,-400.0,0.00012252,2]
[360906627,1747135832602,-400.0,0.00012252,2]
[360906628,1747135832612,-335.03989692,0.00012252,2]
[360906629,1747135832622,-400.0,0.00012252,2]
[360906630,1747135832631,-400.0,0.00012252,2]
[360906631,1747135832641,-400.0,0.00012252,2]
[360906632,1747135832650,-391.69801899,0.00012252,2]
[360906633,1747135832659,-400.0,0.00012252,2]
[360906634,1747135832669,-507.62,0.00012252,2]
[360906635,1747135832678,-400.0,0.00012252,2]
[360906636,1747135832687,-400.0,0.00012252,2]
[360906637,1747135832697,-400.0,0.00012252,2]
[360906638,1747135832706,-400.0,0.00012252,2]
[360906639,1747135832716,-400.0,0.00012252,2]
[360906640,1747135832726,-405.81004046,0.00012252,2]
[360906641,1747135832736,-400.0,0.00012252,2]
[360906642,1747135832745,-400.0,0.00012252,2]
[360906643,1747135832754,-400.0,0.00012252,2]
[360906644,1747135832763,-400.0,0.00012252,2]
[360906645,1747135832773,-400.0,0.00012252,2]
[360906646,1747135832783,-400.0,0.00012252,2]
[360906647,1747135832792,-469.73,0.00012252,2]
[360906648,1747135832800,-400.0,0.00012252,2]
[360906649,1747135832809,-400.0,0.00012252,2]
[360906650,1747135832818,-400.0,0.00012252,2]
[360906651,1747135832827,-400.0,0.00012252,2]
[360906652,1747135832836,-400.0,0.00012252,2]
[360906653,1747135832846,-400.0,0.00012252,2]
[360906654,1747135832855,-400.0,0.00012252,2]
[360906655,1747135832864,-412.06254512,0.00012252,2]
[360906656,1747135832873,-400.0,0.00012252,2]
[360906657,1747135832882,-400.0,0.00012252,2]
[360906658,1747135832892,-400.0,0.00012252,2]
[360906659,1747135832901,-801.69,0.00012252,2]
[360906660,1747135832910,-400.0,0.00012252,2]
[360906661,1747135832919,-400.0,0.00012252,2]
[360906662,1747135832928,-262.5352001,0.00012252,2]
[360906663,1747135832937,-187.44716698,0.00012252,2]
[360906664,1747135832946,-396.00947964,0.00012252,2]
[360906665,1747135832955,-400.0,0.00012252,2]
[360906666,1747135832965,-400.0,0.00012252,2]
[360906667,1747135832975,-400.0,0.00012252,2]
[360906668,1747135832984,-400.0,0.00012252,2]
[360906669,1747135832993,-400.0,0.00012252,2]
[360906670,1747135833002,-400.0,0.00012252,2]
[360906671,1747135833011,-400.0,0.00012252,2]
[360906672,1747135833020,-400.0,0.00012252,2]
[360906673,1747135833029,-400.0,0.00012252,2]
[360906674,1747135833038,-486.59,0.00012252,2]
[360906675,1747135833047,-400.0,0.00012252,2]
[360906676,1747135833061,-400.0,0.00012252,2]
[360906677,1747135833070,-400.0,0.00012252,2]
[360906678,1747135833080,-400.0,0.00012252,2]
[360906679,1747135833089,-400.0,0.00012252,2]
[360906680,1747135833099,-400.0,0.00012252,2]
[360906681,1747135833108,-400.0,0.00012252,2]
[360906682,1747135833118,-400.0,0.00012252,2]
[360906683,1747135833127,-428.37,0.00012252,2]
[360906684,1747135833136,-400.0,0.00012252,2]
[360906685,1747135833146,-400.0,0.00012252,2]
[360906686,1747135833157,-161.74207406,0.00012252,2]
[360906687,1747135833167,-402.97682493,0.00012252,2]
[360906688,1747135833176,-400.0,0.00012252,2]
[360906689,1747135833186,-400.0,0.00012252,2]
[360906690,1747135833196,-400.0,0.00012252,2]
[360906691,1747135833205,-400.0,0.00012252,2]
[360906692,1747135833215,-303.35915404,0.00012252,2]
[360906693,1747135833224,-869.09,0.00012252,2]
[360906694,1747135833234,-400.0,0.00012252,2]
[360906695,1747135833244,-400.0,0.00012252,2]
[360906696,1747135833254,-400.0,0.00012252,2]
[360906697,1747135833265,-400.0,0.00012252,2]
[360906698,1747135833275,-400.0,0.00012252,2]
[360906699,1747135833285,-400.0,0.00012252,2]
[360906700,1747135833294,-400.0,0.00012252,2]
[360906701,1747135833304,-400.0,0.00012252,2]
[360906702,1747135833315,-400.0,0.00012252,2]
[360906703,1747135833325,-400.0,0.00012252,2]
[360906704,1747135833336,-400.0,0.00012252,2]
[360906705,1747135833347,-400.0,0.00012252,2]
[360906706,1747135833357,-400.0,0.00012252,2]
[360906707,1747135833366,-881.01,0.00012252,2]
[360906708,1747135833376,-150.99,0.00012252,2]
[360906709,1747135833385,-4841.06,0.00012252,2]
[360906710,1747135833395,-466.402,0.00012253,2]
[360906711,1747135833404,-401.12384833,0.00012272,2]
[360906712,1747135833413,-400.0,0.00012272,2]
[360906713,1747135833422,-400.0,0.00012272,2]
[360906714,1747135833432,-400.0,0.00012272,2]
[360906715,1747135833441,-500.0,0.00012272,2]
[360906716,1747135833450,-400.0,0.00012272,2]
[360906717,1747135833459,-400.0,0.00012272,2]
[360906718,1747135833468,-445.35,0.00012272,2]
[360906719,1747135833478,-400.0,0.00012272,2]
[360906720,1747135833488,-400.0,0.00012272,2]
[360906721,1747135833498,-494.96,0.00012272,2]
[360906722,1747135833507,-458.39,0.00012272,2]
[360906723,1747135833516,-400.0,0.00012272,2]
[360906724,1747135833530,-400.0,0.00012272,2]
[360906725,1747135833539,-400.0,0.00012272,2]
[360906726,1747135833548,-2040.93,0.00012272,2]
[360906727,1747135833559,-400.0,0.00012272,2]
[360906728,1747135833569,-926.07,0.00012272,2]
[360906729,1747135833778,-400.0,0.00012272,2]
[360906730,1747135833788,-400.0,0.00012272,2]
[360906731,1747135833797,-400.0,0.00012272,2]
[360906732,1747135833806,-400.0,0.00012272,2]
[360906733,1747135833816,-513.2,0.00012272,2]
[360906734,1747135833825,-400.0,0.00012272,2]
[360906735,1747135833835,-1586.65,0.00012272,2]
[360906736,1747135833845,-400.0,0.00012272,2]
[360906737,1747135833854,-400.0,0.00012272,2]
[360906738,1747135833864,-1126.22419644,0.00012279,2]
[360906739,1747135833873,-914.35,0.000123,2]
[360906740,1747135833883,-1156.61,0.000123,2]
[360906741,1747135833892,-8328.7795,0.00012325,2]
[360906742,1747135833902,-7093.51517324,0.000124,2]
[360906743,1747135833912,-1869.0,0.000124,2]
[360906744,1747135833922,-4635.03,0.00012425,2]
[360906745,1747135833931,-361.79764706,0.00012425,2]
[360906746,1747135833941,-7881.9162,0.00012427,2]
[360906747,1747135833950,-204.0361,0.00012428,2]
[360906748,1747135833960,-161.6560563,0.00012437,2]
[360906749,1747135833970,-400.0,0.00012456,2]
[360906750,1747135833979,-400.0,0.00012456,2]
[360906751,1747135833989,-400.0,0.00012456,2]
[360906752,1747135833998,-400.0,0.00012456,2]
[360906753,1747135834007,-400.0,0.00012456,2]
[360906754,1747135834017,-637.93,0.00012456,2]
[360906755,1747135834027,-161.983584,0.00012456,2]
[360906756,1747135834036,-2167.85808246,0.00012456,2]
[360906757,1747135834050,-2547.52134854,0.00012456,2]
[360906758,1747135834060,-488.979304,0.00012456,2]
[360906759,1747135834069,-400.0,0.00012456,2]
[360906760,1747135834079,-956.073992,0.00012456,2]